bitfinex/quotes_BTCUSD_20251224
["timestamp","ask_amount","ask_price","bid_price","bid_amount"]
[1766576576525,0.01148,87251.0,87244.0,0.0114621]
[1766576577384,0.01148,87251.0,87243.0,0.06877335]
[1766576578302,0.02294118,87251.0,87242.0,0.06877414]
[1766576578503,0.01146131,87250.0,87241.0,0.0114625]
[1766576578751,0.01146131,87250.0,87242.0,0.01146236]
[1766576579346,0.01146131,87250.0,87241.0,0.06877491]
[1766576579549,0.01146144,87249.0,87241.0,0.06877491]
[1766576580370,0.06876798,87250.0,87241.0,0.06877491]
[1766576580932,0.01146131,87250.0,87242.0,0.01146236]
[1766576581496,0.02294118,87251.0,87243.0,0.01146223]
[1766576581719,0.01148,87251.0,87243.0,0.01146223]
[1766576582144,0.02294118,87251.0,87243.0,0.06877316]
[1766576582506,0.01148,87251.0,87243.0,0.01146223]
[1766576582886,0.01148,87251.0,87244.0,0.0114621]
[1766576583515,0.02294118,87251.0,87243.0,0.0687734]
[1766576583720,0.01148,87251.0,87243.0,0.0687734]
[1766576584114,0.02294118,87251.0,87243.0,0.01146223]
[1766576584511,0.01148,87251.0,87244.0,0.0114621]
[1766576585363,0.01146131,87250.0,87242.0,0.01146236]
[1766576585566,0.08024741,87251.0,87243.0,0.01146223]
[1766576586379,0.08024741,87251.0,87242.0,0.01146236]
[1766576586555,0.08024741,87251.0,87242.0,0.06877402]
[1766576586898,0.01148,87251.0,87245.0,0.01146197]
[1766576587843,0.01148,87251.0,87246.0,0.01146184]
[1766576588041,0.01148,87251.0,87245.0,0.01146197]
[1766576588667,0.01148,87251.0,87245.0,0.06877181]
[1766576588888,0.01148,87251.0,87246.0,0.01146184]
[1766576589206,0.01148,87251.0,87245.0,0.06877181]
[1766576590061,0.01148,87251.0,87244.0,0.06877257]
[1766576590239,0.01146131,87250.0,87242.0,0.06877375]
[1766576590544,0.06878603,87251.0,87242.0,0.06877375]
[1766576591155,0.08024721,87251.0,87242.0,0.06877375]
[1766576592659,0.08024721,87251.0,87243.0,0.01146223]
[1766576594146,0.08024721,87251.0,87242.0,0.06877375]
[1766576594355,0.01146131,87250.0,87241.0,0.06877483]
[1766576594808,0.08024721,87251.0,87242.0,0.06877415]
[1766576594977,0.01148,87251.0,87243.0,0.06877314]
[1766576595175,0.06876282,87257.0,87251.0,0.00055]
[1766576595381,0.06876282,87257.0,87248.0,0.06876944]
[1766576595382,0.01148,87254.0,87249.0,0.01146144]
[1766576595698,0.01148,87254.0,87248.0,0.06876944]
[1766576595893,0.01148,87254.0,87251.0,0.01146118]
[1766576596094,0.01148,87254.0,87251.0,0.06876706]
[1766576596476,0.01148,87254.0,87251.0,0.01146118]
[1766576597057,0.06195,87260.0,87253.0,0.01146092]
[1766576597308,0.01148,87259.0,87253.0,0.06876508]
[1766576597510,0.01148,87259.0,87253.0,0.11501]
[1766576597712,0.01148,87259.0,87254.0,0.01146079]
[1766576597921,0.01148,87259.0,87253.0,0.18377553]
[1766576598318,0.01148,87259.0,87253.0,0.11501]
[1766576598886,0.01148,87259.0,87253.0,0.12647092]
[1766576599093,0.01148,87259.0,87253.0,0.11501]
[1766576600136,0.02294013,87259.0,87253.0,0.11501]
[1766576601305,0.01145987,87261.0,87253.0,0.11501]
[1766576601502,0.01148,87259.0,87253.0,0.11501]
[1766576602540,0.02294013,87259.0,87253.0,0.11501]
[1766576602765,0.01148,87259.0,87253.0,0.11501]
[1766576602953,0.02294013,87259.0,87253.0,0.11501]
[1766576603131,0.01146039,87257.0,87253.0,0.114461]
[1766576603518,0.0687616,87258.0,87253.0,0.114461]
[1766576603716,0.01146039,87257.0,87253.0,0.114461]
[1766576606542,0.0687616,87258.0,87253.0,0.114461]
[1766576606949,0.01146039,87257.0,87253.0,0.114461]
[1766576607579,0.0687616,87258.0,87253.0,0.114461]
[1766576608524,0.01146039,87257.0,87253.0,0.114461]
[1766576609564,0.0687616,87258.0,87253.0,0.114461]
[1766576611164,0.08024083,87259.0,87253.0,0.114461]
[1766576612326,0.01146026,87258.0,87253.0,0.114461]
[1766576614005,0.01148,87259.0,87253.0,0.114461]
[1766576614147,0.08024107,87259.0,87253.0,0.114461]
[1766576614346,0.02294013,87259.0,87253.0,0.114461]
[1766576614992,0.08024102,87259.0,87253.0,0.114461]
[1766576617014,0.06876447,87255.0,87246.0,0.02294184]
[1766576617214,0.06876475,87254.0,87246.0,0.01148]
[1766576617440,0.06876567,87253.0,87246.0,0.01148]
[1766576618021,0.01146079,87254.0,87246.0,0.12446]
[1766576618616,0.06876443,87256.0,87246.0,0.19323101]
[1766576618825,0.01146066,87255.0,87247.0,0.01146171]
[1766576619027,0.06876443,87256.0,87247.0,0.01146171]
[1766576619632,0.06876398,87255.0,87246.0,0.19323101]
[1766576619852,0.06876398,87255.0,87247.0,0.01146171]
[1766576621114,0.01146066,87255.0,87247.0,0.01146171]
[1766576621320,0.06876168,87258.0,87255.0,0.000549]
[1766576621473,0.08024126,87259.0,87255.0,0.000549]
[1766576621682,0.08024126,87259.0,87250.0,0.06876748]
[1766576621876,0.08024126,87259.0,87251.0,0.01146118]
[1766576622081,0.08024126,87259.0,87250.0,0.01146131]
[1766576623411,0.01146026,87258.0,87250.0,0.01146131]
[1766576623634,0.08024126,87259.0,87250.0,0.01146131]
[1766576623812,0.08024126,87259.0,87250.0,0.06876785]
[1766576624148,0.01146026,87258.0,87250.0,0.01146131]
[1766576624995,0.08024126,87259.0,87250.0,0.06876779]
[1766576624996,0.08024085,87259.0,87250.0,0.06876779]
[1766576625209,0.02294013,87259.0,87250.0,0.06876779]
[1766576625705,0.01146026,87258.0,87249.0,0.01146144]
[1766576625909,0.02294013,87259.0,87251.0,0.01146118]
[1766576626110,0.01146026,87258.0,87250.0,0.01146131]
[1766576626684,0.08024127,87259.0,87251.0,0.01146118]
[1766576626883,0.08024127,87259.0,87250.0,0.06876776]
[1766576627213,0.06876172,87258.0,87249.0,0.06876865]
[1766576627434,0.01146026,87258.0,87250.0,0.01146131]
[1766576628322,0.08024127,87259.0,87251.0,0.01146118]
[1766576628474,0.08024127,87259.0,87250.0,0.06876745]
[1766576628691,0.01148,87259.0,87251.0,0.06876708]
[1766576628900,0.02294013,87259.0,87251.0,0.06876708]
[1766576629093,0.02294013,87259.0,87252.0,0.11298]
[1766576629491,0.01148,87258.0,87252.0,0.11298]
[1766576630938,0.01148,87258.0,87252.0,0.12444105]
[1766576631925,0.01148,87258.0,87253.0,0.11298]
[1766576635238,0.02294026,87258.0,87253.0,0.11298]
[1766576635443,0.06876287,87257.0,87253.0,0.11298]
[1766576635977,0.01146039,87257.0,87253.0,0.11298]
[1766576636491,0.06876249,87257.0,87253.0,0.11298]
[1766576637501,0.06876259,87257.0,87253.0,0.11298]
[1766576637885,0.01146039,87257.0,87253.0,0.11298]
[1766576638374,0.08024166,87258.0,87253.0,0.11298]
[1766576638587,0.01146039,87257.0,87253.0,0.11298]
[1766576640552,0.06876252,87257.0,87253.0,0.11298]
[1766576642059,0.01146052,87256.0,87253.0,0.11298]
[1766576643094,0.06876338,87256.0,87253.0,0.11298]
[1766576644525,0.01146052,87256.0,87253.0,0.11298]
[1766576647817,0.08024167,87258.0,87253.0,0.11298]
[1766576648023,0.01148,87258.0,87257.0,0.12294]
[1766576649020,0.06823233,87258.0,87257.0,0.12294]
[1766576651919,0.010931,87258.0,87257.0,0.12294]
[1766576657513,0.06823233,87258.0,87257.0,0.12294]
[1766576658097,0.010931,87258.0,87257.0,0.12294]
[1766576660473,0.010931,87258.0,87257.0,0.122391]
[1766576660659,0.06823233,87258.0,87257.0,0.122391]
[1766576661726,0.06823233,87258.0,87257.0,0.10545643]
[1766576662498,0.01146039,87257.0,87248.0,0.06876924]
[1766576663392,0.01146052,87256.0,87247.0,0.06877022]
[1766576663628,0.05730295,87256.0,87247.0,0.01146171]
[1766576663956,0.01146052,87256.0,87248.0,0.01146158]
[1766576664245,0.06876168,87258.0,87256.0,0.000549]
[1766576664651,0.01146052,87256.0,87248.0,0.01146158]
[1766576665967,0.06876238,87257.0,87248.0,0.01146158]
[1766576666945,0.01146052,87256.0,87248.0,0.01146158]
[1766576667157,0.06876246,87257.0,87248.0,0.01146158]
[1766576667359,0.06876342,87256.0,87247.0,0.01146171]
[1766576667743,0.06876246,87257.0,87248.0,0.01146158]
[1766576668677,0.01146039,87257.0,87249.0,0.01146144]
[1766576668883,0.06876171,87258.0,87249.0,0.01146144]
[1766576669059,0.01146039,87257.0,87248.0,0.06876938]
[1766576671013,0.06876171,87258.0,87249.0,0.01146144]
[1766576672383,0.01146026,87258.0,87249.0,0.06876839]
[1766576672564,0.01146039,87257.0,87249.0,0.01146144]
[1766576672761,0.06876168,87258.0,87249.0,0.01146144]
[1766576673805,0.01146026,87258.0,87250.0,0.01146131]
[1766576674156,0.01146026,87258.0,87249.0,0.06876858]
[1766576674973,0.06876144,87259.0,87250.0,0.01146131]
[1766576675395,0.05729939,87261.0,87251.0,0.01146118]
[1766576675557,0.01146013,87259.0,87251.0,0.01146118]
[1766576675794,0.01148076,87262.0,87259.0,0.000549]
[1766576676124,0.01148076,87262.0,87255.0,0.01146066]
[1766576676325,0.01148076,87262.0,87254.0,0.06876448]
[1766576676697,0.01148076,87262.0,87254.0,0.01146079]
[1766576677301,0.01148076,87262.0,87255.0,0.01146066]
[1766576677738,0.01148076,87262.0,87254.0,0.01146079]
[1766576678058,0.01148076,87262.0,87255.0,0.01146066]
[1766576678655,0.01148076,87262.0,87254.0,0.06876428]
[1766576679013,0.01148076,87262.0,87255.0,0.01146066]
[1766576679223,0.01148076,87262.0,87254.0,0.06876428]
[1766576680212,0.01148076,87262.0,87255.0,0.01146066]
[1766576681408,0.01148076,87262.0,87254.0,0.01146079]
[1766576681545,0.08023947,87262.0,87253.0,0.01146092]
[1766576681750,0.08023945,87262.0,87253.0,0.01146092]
[1766576682252,0.01145987,87261.0,87252.0,0.06876504]
[1766576682493,0.08023945,87262.0,87252.0,0.06876504]
[1766576682698,0.08023945,87262.0,87253.0,0.01146092]
[1766576683662,0.01145987,87261.0,87253.0,0.01146092]
[1766576683851,0.08023945,87262.0,87253.0,0.01146092]
[1766576685449,0.0229405,87262.0,87254.0,0.01146079]
[1766576685651,0.01145987,87261.0,87253.0,0.01146092]
[1766576686056,0.01146,87260.0,87252.0,0.01146105]
[1766576686633,0.01145987,87261.0,87253.0,0.01146092]
[1766576687707,0.01145987,87261.0,87252.0,0.06876607]
[1766576687878,0.08023968,87262.0,87253.0,0.01146092]
[1766576688059,0.01145987,87261.0,87252.0,0.06876607]
[1766576688467,0.01146013,87259.0,87251.0,0.02294118]
[1766576688690,0.06876052,87260.0,87251.0,0.02294118]
[1766576689351,0.01146013,87259.0,87251.0,0.01148]
[1766576689551,0.06876115,87259.0,87251.0,0.01148]
[1766576689990,0.06876052,87260.0,87251.0,0.01148]
[1766576690849,0.01146,87260.0,87251.0,0.08024705]
[1766576691205,0.01146,87260.0,87252.0,0.01146105]
[1766576692776,0.01146,87260.0,87251.0,0.08024705]
[1766576693297,0.01146,87260.0,87252.0,0.01146105]
[1766576693458,0.01146013,87259.0,87251.0,0.01148]
[1766576693662,0.01146013,87259.0,87251.0,0.02294118]
[1766576693880,0.01146013,87259.0,87251.0,0.01148]
[1766576694085,0.01146013,87259.0,87251.0,0.02294118]
[1766576694282,0.06876096,87259.0,87251.0,0.01148]
[1766576695907,0.06876182,87258.0,87251.0,0.01148]
[1766576696107,0.01146052,87256.0,87251.0,0.01148]
[1766576696310,0.06876286,87257.0,87251.0,0.01148]
[1766576696718,0.01146052,87256.0,87251.0,0.01148]
[1766576697047,0.06876286,87257.0,87251.0,0.01148]
[1766576698413,0.01146039,87257.0,87251.0,0.01148]
[1766576698771,0.06876272,87257.0,87251.0,0.01148]
[1766576699105,0.06876163,87258.0,87251.0,0.01148]
[1766576699305,0.01146013,87259.0,87251.0,0.02294118]
[1766576699758,0.01146013,87259.0,87251.0,0.01148]
[1766576699911,0.01146039,87257.0,87251.0,0.01148]
[1766576700110,0.06876176,87258.0,87251.0,0.01148]
[1766576700510,0.01146039,87257.0,87251.0,0.01148]
[1766576701331,0.01146052,87256.0,87251.0,0.01148]
[1766576701836,0.0687624,87257.0,87251.0,0.01148]
[1766576702042,0.01146039,87257.0,87251.0,0.01148]
[1766576703280,0.06876176,87258.0,87251.0,0.01148]
[1766576703449,0.06876249,87257.0,87251.0,0.01148]
[1766576703851,0.01146105,87252.0,87240.0,0.01146263]
[1766576704051,0.01146105,87252.0,87238.0,0.14685928]
[1766576704052,0.01146131,87250.0,87241.0,0.01148]
[1766576704320,0.01146158,87248.0,87239.0,0.01146276]
[1766576704486,0.01146171,87247.0,87240.0,0.01148]
[1766576704891,0.06876958,87248.0,87240.0,0.02294263]
[1766576705053,0.01146158,87248.0,87240.0,0.01148]
[1766576705249,0.01146158,87248.0,87240.0,0.02294263]
[1766576705721,0.06876995,87249.0,87239.0,0.01146276]
[1766576705870,0.06877035,87247.0,87241.0,0.01148]
[1766576706271,0.01146184,87246.0,87241.0,0.01148]
[1766576706510,0.06876997,87248.0,87241.0,0.01148]
[1766576706717,0.06877028,87247.0,87241.0,0.01148]
[1766576706899,0.01146184,87246.0,87241.0,0.01148]
[1766576707274,0.01146197,87245.0,87241.0,0.01148]
[1766576707482,0.06877114,87246.0,87241.0,0.01148]
[1766576708055,0.01146184,87246.0,87241.0,0.01148]
[1766576708881,0.01146197,87245.0,87241.0,0.01148]
[1766576709335,0.01146184,87246.0,87241.0,0.01148]
[1766576710425,0.06877123,87246.0,87241.0,0.01148]
[1766576710572,0.01146184,87246.0,87241.0,0.01148]
[1766576710942,0.0114625,87241.0,87233.0,0.03440364]
[1766576711148,0.05731258,87241.0,87233.0,0.01148]
[1766576711344,0.06877508,87241.0,87233.0,0.01148]
[1766576711545,0.01146223,87243.0,87241.0,0.000549]
[1766576711774,0.01148,87244.0,87243.0,0.00055]
[1766576712407,0.01148,87244.0,87239.0,0.06877657]
[1766576713261,0.01148,87244.0,87240.0,0.01146263]
[1766576713574,0.010931,87244.0,87240.0,0.01146263]
[1766576713985,0.01146158,87248.0,87240.0,0.01146263]
[1766576714182,0.06876918,87249.0,87241.0,0.0114625]
[1766576714388,0.01146158,87248.0,87240.0,0.01146263]
[1766576714585,0.06876959,87248.0,87239.0,0.01146276]
[1766576715203,0.01146171,87247.0,87238.0,0.0687772]
[1766576715661,0.01146171,87247.0,87239.0,0.01146276]
[1766576715964,0.01146171,87247.0,87239.0,0.06877655]
[1766576716099,0.01148,87248.0,87240.0,0.01146263]
[1766576716301,0.02294158,87248.0,87240.0,0.01146263]
[1766576716504,0.0802495,87248.0,87238.0,0.06877721]
[1766576716827,0.01146171,87247.0,87239.0,0.01146276]
[1766576717229,0.06877035,87247.0,87238.0,0.06877721]
[1766576717438,0.01146184,87246.0,87238.0,0.01146289]
[1766576717864,0.01146184,87246.0,87237.0,0.06877766]
[1766576718173,0.06877035,87247.0,87238.0,0.01146289]
[1766576718476,0.01146184,87246.0,87237.0,0.06877766]
[1766576718652,0.01146171,87247.0,87238.0,0.06877735]
[1766576719061,0.08024954,87248.0,87239.0,0.01146276]
[1766576719808,0.08024952,87248.0,87239.0,0.06877644]
[1766576720017,0.03095851,87275.0,87252.0,0.01146105]
[1766576720018,0.01145947,87264.0,87252.0,0.01146105]
[1766576720227,0.40563747,87280.0,87255.0,0.01146066]
[1766576720228,0.01145908,87267.0,87255.0,0.01146066]
[1766576720346,0.01148,87264.0,87257.0,0.01146039]
[1766576720794,0.02293947,87264.0,87255.0,0.06876268]
[1766576720994,0.08023697,87264.0,87255.0,0.01146066]
[1766576721235,0.06875796,87263.0,87254.0,0.01146079]
[1766576721443,0.06875926,87262.0,87254.0,0.01146079]
[1766576721644,0.0114605,87262.0,87254.0,0.01146079]
[1766576721870,0.01145987,87261.0,87253.0,0.01146092]
[1766576722019,0.06875936,87262.0,87253.0,0.01146092]
[1766576722427,0.06875936,87262.0,87254.0,0.01146079]
[1766576722624,0.06875936,87262.0,87253.0,0.06876551]
[1766576723265,0.0114605,87262.0,87254.0,0.01146079]
[1766576723727,7.6e-07,87262.0,87254.0,0.06876472]
[1766576724447,7.6e-07,87262.0,87256.0,0.01146052]
[1766576724650,0.00011,87268.0,87265.0,0.01145934]
[1766576725444,0.00011,87268.0,87267.0,0.05729542]
[1766576725707,0.06874747,87276.0,87266.0,0.06875472]
[1766576725860,0.01145803,87275.0,87266.0,0.06875472]
[1766576726059,0.01145816,87274.0,87266.0,0.06875472]
[1766576726250,0.01145816,87274.0,87266.0,0.01145921]
[1766576726448,0.01145803,87275.0,87266.0,0.01145921]
[1766576726707,0.01145816,87274.0,87266.0,0.01145921]
[1766576726879,0.01145816,87274.0,87265.0,0.01145934]
[1766576726880,0.01145829,87273.0,87265.0,0.01145934]
[1766576727079,0.01145816,87274.0,87265.0,0.06875599]
[1766576727399,0.06874928,87274.0,87264.0,0.06875677]
[1766576727616,0.06874928,87274.0,87265.0,0.01145934]
[1766576727782,0.01145816,87274.0,87265.0,0.06875589]
[1766576728108,0.01145816,87274.0,87266.0,0.01145921]
[1766576728369,0.01145816,87274.0,87265.0,0.06875589]
[1766576728504,0.01145816,87274.0,87266.0,0.01145921]
[1766576728706,0.06874915,87274.0,87265.0,0.01145934]
[1766576728956,0.000109,87266.0,87263.0,0.01148]
[1766576729160,0.06875156,87271.0,87263.0,0.01148]
[1766576729945,0.06875156,87271.0,87263.0,0.02293961]
[1766576730154,0.01145869,87270.0,87263.0,0.01148]
[1766576730668,0.01145882,87269.0,87263.0,0.011371]
[1766576730855,0.06875222,87270.0,87263.0,0.011371]
[1766576731039,0.01145869,87270.0,87263.0,0.011371]
[1766576731390,0.06875237,87270.0,87263.0,0.011371]
[1766576731690,0.01145869,87270.0,87263.0,0.011371]
[1766576731822,0.06875234,87270.0,87263.0,0.011371]
[1766576733730,0.01145869,87270.0,87263.0,0.011371]
[1766576733931,0.0687519,87271.0,87263.0,0.011371]
[1766576734131,0.06875182,87272.0,87263.0,0.02283061]
[1766576734556,0.01145856,87271.0,87263.0,0.011371]
[1766576734758,0.01145869,87270.0,87263.0,0.011371]
[1766576735597,0.01145869,87270.0,87263.0,0.01141998]
[1766576736112,0.01145882,87269.0,87263.0,0.01141998]
[1766576737063,0.06875298,87269.0,87263.0,0.01141998]
[1766576737258,0.06875372,87268.0,87263.0,0.01141998]
[1766576738422,0.01145908,87267.0,87263.0,0.01141998]
[1766576739546,0.01145895,87268.0,87263.0,0.01141998]
[1766576739929,0.06875418,87269.0,87263.0,0.01141998]
[1766576742212,0.01145829,87273.0,87263.0,0.02287959]
[1766576742414,0.01145856,87271.0,87263.0,0.01141998]
[1766576743131,0.01145856,87271.0,87263.0,0.02287959]
[1766576744150,0.06875148,87271.0,87263.0,0.01141998]
[1766576744371,0.06875148,87271.0,87263.0,0.02287959]
[1766576744532,0.01145856,87271.0,87263.0,0.08017746]
[1766576744901,0.01145856,87271.0,87263.0,0.02287959]
[1766576745207,0.06875105,87272.0,87264.0,0.01145947]
[1766576745413,0.06875105,87272.0,87263.0,0.08017753]
[1766576745858,0.01145856,87271.0,87263.0,0.02287959]
[1766576747447,0.00055,87263.0,87262.0,0.01145974]
[1766576747647,0.00055,87263.0,87262.0,0.06875805]
[1766576747869,0.01145842,87272.0,87264.0,0.01145947]
[1766576748389,0.01145803,87275.0,87264.0,0.01145947]
[1766576748590,0.01145816,87274.0,87265.0,0.06875485]
[1766576748793,0.06874985,87273.0,87264.0,0.06875678]
[1766576749020,0.01145842,87272.0,87264.0,0.06875678]
[1766576749368,0.01145842,87272.0,87263.0,0.01145961]
[1766576749578,0.01145856,87271.0,87262.0,0.06875799]
[1766576749758,0.06875108,87272.0,87262.0,0.06875799]
[1766576750420,0.06875108,87272.0,87261.0,0.0687793]
[1766576750421,0.05729353,87270.0,87261.0,0.0802392]
[1766576750596,0.06875222,87270.0,87262.0,0.01145974]
[1766576750894,0.01145869,87270.0,87262.0,0.08023824]
[1766576751116,0.06875184,87271.0,87263.0,0.01145961]
[1766576751594,0.01145856,87271.0,87263.0,0.01145961]
[1766576751897,0.06875062,87272.0,87263.0,0.06875764]
[1766576752103,0.01145856,87271.0,87263.0,0.01145961]
[1766576752447,0.01145856,87271.0,87262.0,0.08023821]
[1766576752806,0.01145869,87270.0,87262.0,0.08023821]
[1766576753208,0.06875151,87271.0,87262.0,0.08023821]
[1766576753428,0.01145856,87271.0,87263.0,0.01145961]
[1766576753721,0.01145829,87273.0,87263.0,0.01145961]
[1766576753921,0.01145829,87273.0,87265.0,0.01145934]
[1766576754326,0.01145829,87273.0,87264.0,0.06875643]
[1766576754481,0.01145829,87273.0,87265.0,0.01145934]
[1766576754888,0.01145842,87272.0,87263.0,0.06875763]
[1766576755108,0.01145856,87271.0,87263.0,0.01145961]
[1766576755997,0.01145856,87271.0,87262.0,0.08023836]
[1766576756934,0.01145869,87270.0,87262.0,0.08023836]
[1766576757264,0.06875144,87271.0,87262.0,0.08023836]
[1766576757848,0.06875234,87270.0,87262.0,0.01148]
[1766576757986,0.06875217,87270.0,87262.0,0.01148]
[1766576758180,0.01145882,87269.0,87262.0,0.01148]
[1766576758404,0.01145869,87270.0,87262.0,0.02293974]
[1766576758608,0.01086405,87270.0,87262.0,0.02293974]
[1766576759054,0.01145842,87272.0,87264.0,0.01145947]
[1766576759277,0.01145856,87271.0,87263.0,0.06875752]
[1766576759497,0.01145842,87272.0,87263.0,0.06875752]
[1766576759700,0.06874986,87273.0,87264.0,0.01145947]
[1766576760059,0.06874986,87273.0,87264.0,0.06875667]
[1766576760242,0.06874986,87273.0,87265.0,0.01145934]
[1766576760588,0.01145842,87272.0,87264.0,0.06875681]
[1766576760843,0.06874986,87273.0,87264.0,0.06875681]
[1766576761015,0.01145842,87272.0,87264.0,0.01145947]
[1766576761345,0.06875031,87273.0,87264.0,0.01145947]
[1766576761518,0.01145842,87272.0,87264.0,0.01145947]
[1766576762373,0.06875031,87273.0,87264.0,0.01145947]
[1766576762976,0.06875022,87274.0,87265.0,0.01145934]
[1766576763957,0.01145829,87273.0,87265.0,0.01145934]
[1766576764162,0.12465,87275.0,87268.0,0.01145895]
[1766576764366,0.01148,87276.0,87273.0,0.000549]
[1766576764577,0.0229379,87276.0,87268.0,0.1201]
[1766576764957,0.01148,87276.0,87268.0,0.13155895]
[1766576765276,0.0229379,87276.0,87268.0,0.1201]
[1766576765772,0.08022772,87276.0,87268.0,0.13155895]
[1766576766042,0.01145803,87275.0,87268.0,0.1201]
[1766576766387,0.08022772,87276.0,87268.0,0.1201]
[1766576766786,0.0687482,87275.0,87268.0,0.10472062]
[1766576768034,0.01145803,87275.0,87268.0,0.10472062]
[1766576769283,0.01149887,87275.0,87268.0,0.10472062]
[1766576769488,0.06875634,87265.0,87262.0,0.01148]
[1766576769710,0.01145947,87264.0,87263.0,0.01148]
[1766576769873,0.01145934,87265.0,87263.0,0.01148]
[1766576770089,0.06875611,87265.0,87263.0,0.01148]
[1766576776019,0.05729739,87264.0,87263.0,0.01148]
[1766576776434,0.06875611,87265.0,87263.0,0.01148]
[1766576779863,0.05729739,87264.0,87263.0,0.01148]
[1766576781255,0.01145921,87266.0,87263.0,0.01148]
[1766576781461,0.01145987,87261.0,87256.0,0.13158]
[1766576781686,0.05729997,87261.0,87256.0,0.13158]
[1766576781889,0.05729997,87261.0,87251.0,0.21562635]
[1766576781890,0.01146079,87254.0,87251.0,0.14685928]
[1766576782039,0.01146079,87254.0,87252.0,0.01148]
[1766576782409,0.06876498,87254.0,87252.0,0.01148]
[1766576782612,0.06876498,87254.0,87251.0,0.15833928]
[1766576782822,0.01146079,87254.0,87251.0,0.15833928]
[1766576783482,0.06876524,87254.0,87251.0,0.15833928]
[1766576784467,0.0573047,87253.0,87251.0,0.15833928]
[1766576785555,0.01146079,87254.0,87251.0,0.15833928]
[1766576785778,0.06876498,87254.0,87251.0,0.15833928]
[1766576785993,0.06876401,87255.0,87251.0,0.15833928]
[1766576786199,0.01146079,87254.0,87251.0,0.01148]
[1766576786715,0.06876482,87254.0,87251.0,0.01148]
[1766576786915,0.01146079,87254.0,87251.0,0.01148]
[1766576787332,0.06876529,87254.0,87251.0,0.01148]
[1766576788161,0.05730498,87253.0,87251.0,0.01148]
[1766576788707,0.05730527,87252.0,87251.0,0.01148]
[1766576789471,0.05730527,87252.0,87251.0,0.01093]
[1766576795474,0.01146144,87249.0,87248.0,0.01148]
[1766576795675,0.05730574,87253.0,87252.0,0.000549]
[1766576796146,0.06876682,87252.0,87247.0,0.01148]
[1766576796774,0.05730617,87251.0,87247.0,0.01148]
[1766576796888,0.06876735,87251.0,87247.0,0.01148]
[1766576797323,0.01146131,87250.0,87247.0,0.01148]
[1766576798458,0.05730772,87249.0,87247.0,0.01148]
[1766576800757,0.06876797,87250.0,87247.0,0.01148]
[1766576801745,0.06876764,87251.0,87247.0,0.01148]
[1766576803094,0.01146131,87250.0,87247.0,0.01148]
[1766576803763,0.06876764,87251.0,87247.0,0.01148]
[1766576803982,0.01146131,87250.0,87247.0,0.01148]
[1766576805192,0.06876806,87250.0,87247.0,0.01148]
[1766576805823,0.01146131,87250.0,87247.0,0.01148]
[1766576806041,0.06876801,87250.0,87247.0,0.01148]
[1766576809559,0.06876738,87251.0,87250.0,0.00055]
[1766576809736,0.01146131,87250.0,87247.0,0.01148]
[1766576810383,0.01146184,87246.0,87239.0,0.14685928]
[1766576810584,0.000549,87247.0,87246.0,0.00055]
[1766576810955,0.01146144,87249.0,87241.0,0.0114625]
[1766576811367,0.01146158,87248.0,87240.0,0.06877523]
[1766576811577,0.01146158,87248.0,87239.0,0.08025603]
[1766576811771,0.01146158,87248.0,87240.0,0.01146263]
[1766576813020,0.06876908,87250.0,87241.0,0.0114625]
[1766576813202,0.06876713,87251.0,87242.0,0.01146236]
[1766576813844,0.06876801,87250.0,87242.0,0.01146236]
[1766576814130,0.06876801,87250.0,87241.0,0.08025456]
[1766576814310,0.01146118,87251.0,87243.0,0.01146223]
[1766576814713,0.05730527,87252.0,87243.0,0.01146223]
[1766576814911,0.01146118,87251.0,87243.0,0.01146223]
[1766576815174,0.01146118,87251.0,87242.0,0.08025407]
[1766576815530,0.01146118,87251.0,87243.0,0.01146223]
[1766576815917,0.06876714,87251.0,87242.0,0.08025407]
[1766576816136,0.01148,87255.0,87251.0,0.00055]
[1766576816400,0.01146079,87254.0,87251.0,0.00055]
[1766576816640,0.01157798,87255.0,87247.0,0.01146171]
[1766576816763,0.06888145,87255.0,87246.0,0.01146184]
[1766576816969,0.01146079,87254.0,87245.0,0.06877134]
[1766576817164,0.02303864,87255.0,87246.0,0.06877101]
[1766576817367,0.02303864,87255.0,87246.0,0.01146184]
[1766576817569,0.01146079,87254.0,87246.0,0.01146184]
[1766576817970,0.02303864,87255.0,87246.0,0.06877098]
[1766576818356,0.06876475,87254.0,87246.0,0.01146184]
[1766576818814,0.08034208,87255.0,87247.0,0.01146171]
[1766576819031,0.01146079,87254.0,87246.0,0.01146184]
[1766576820023,0.08034208,87255.0,87246.0,0.06877104]
[1766576820224,0.01146079,87254.0,87246.0,0.06877104]
[1766576820430,0.01146079,87254.0,87246.0,0.01146184]
[1766576820829,0.08034215,87255.0,87247.0,0.01146171]
[1766576821038,0.08034215,87255.0,87246.0,0.06877093]
[1766576821254,0.08034215,87255.0,87247.0,0.01146171]
[1766576822028,0.01157798,87255.0,87252.0,0.01146105]
[1766576822228,0.01146,87260.0,87252.0,0.01146105]
[1766576822435,0.01146,87260.0,87251.0,0.06876657]
[1766576823049,0.01146013,87259.0,87251.0,0.06876657]
[1766576823494,0.06877895,87262.0,87252.0,0.01146105]
[1766576823695,0.01148,87262.0,87252.0,0.01146105]
[1766576824030,0.05729887,87262.0,87253.0,0.06876528]
[1766576824598,0.01145987,87261.0,87253.0,0.01146092]
[1766576824802,0.06875861,87262.0,87253.0,0.01146092]
[1766576825003,0.06875846,87262.0,87253.0,0.06876553]
[1766576825216,0.06875846,87262.0,87253.0,0.06876538]
[1766576825418,0.01145974,87262.0,87254.0,0.01146079]
[1766576825589,0.08023809,87263.0,87254.0,0.06876459]
[1766576825768,0.02293961,87263.0,87254.0,0.01146079]
[1766576826121,0.01148,87263.0,87254.0,0.05730339]
[1766576826311,0.02293961,87263.0,87255.0,0.01146066]
[1766576826936,0.02293961,87263.0,87254.0,0.06876456]
[1766576827140,0.02293961,87263.0,87255.0,0.01146066]
[1766576828735,0.01148,87263.0,87255.0,0.01146066]
[1766576829573,0.06875882,87262.0,87253.0,0.01146092]
[1766576829777,0.000549,87255.0,87252.0,0.01146105]
[1766576830348,0.01146,87260.0,87252.0,0.01146105]
[1766576830767,0.01145987,87261.0,87252.0,0.06876616]
[1766576831170,0.06875927,87261.0,87252.0,0.06876616]
[1766576831376,0.06875927,87261.0,87253.0,0.01146092]
[1766576831529,0.06875927,87261.0,87252.0,0.06876616]
[1766576831731,0.08023767,87263.0,87253.0,0.06876538]
[1766576832737,0.01145974,87262.0,87254.0,0.01146079]
[1766576832938,0.05729758,87264.0,87255.0,0.01146066]
[1766576833169,0.01145947,87264.0,87255.0,0.06876396]
[1766576833364,0.01145947,87264.0,87256.0,0.01146052]
[1766576833758,0.01145961,87263.0,87255.0,0.06876396]
[1766576834162,0.01145974,87262.0,87254.0,0.06876469]
[1766576834371,0.01145961,87263.0,87255.0,0.01146066]